{"text_format":"1","workbook":"xlsx","n_sheets":1,"sheets":["Sheet1"],"not_rendered":{"charts":0,"images":0,"macros":1,"external_links":0,"defined_names":0,"comments":0,"pivot_tables":0},"unopened":[],"bounds":{"document_bytes":16777216,"sheet_cells":100000,"rows_first":2000,"rows_last":500,"rows_between":2000,"halvings":0,"cell_chars":16384,"cell_head_chars":4096},"cells_cut":0,"cells_raw":0,"read":"whole","date_system":"1900"}

{"sheet":"Sheet1","index":0,"n_rows":25,"n_cols":10,"rows_kept":25,"cut":false,"hidden":false,"merged":[[1,11,1,13]]}
[null,null,null,null,null,null,null," "]
[null,null,null,null,null,null,null," "]
[null,"Archetype",null,"Primary",null,"Secondary",null,null," "]
[null,{"$f":"CHOOSE(RANDBETWEEN(1,15),\"Blaster\",\"Controller\",\"Def\",\"Scrapper\",\"Tanker\",\"PB\",\"WS\",\"Sent\",\"Brute\",\"Stalker\",\"Corr\",\"Dom\",\"MM\",\"Widow\",\"Soldier\")","v":"Sent"},null,{"$f":"IF(B4=\"Blaster\",(CHOOSE(RANDBETWEEN(1,13),\"Archery\",\"AR\",\"Beam\",\"Dark\",\"Dual\",\"Elec\",\"Energy\",\"Fire\",\"Ice\",\"Psy\",\"Rad\",\"Sonic\",\"Water\",\"DP\")),\"Not Applicable\")","v":"Not Applicable"},null,{"$f":"IF(B4=\"Blaster\",(CHOOSE(RANDBETWEEN(1,14),\"Atomic\",\"Dark\",\"Devices\",\"Elec\",\"Energy\",\"Fire\",\"Ice\",\"Martial\",\"Mental\",\"Ninja\",\"Plant\",\"Sonic\",\"TactArrow\",\"Temporal\")),\"Not Applicable\")","v":"Not Applicable"}]
[null," ",null,{"$f":"IF(B4=\"Controller\",(CHOOSE(RANDBETWEEN(1,9),\"Fire\",\"Earth\",\"Dark\",\"Elec\",\"Grav\",\"Ice\",\"Illu\",\"mind\",\"plant\")),\"Not Applicable\")","v":"Not Applicable"},null,{"$f":"IF(B4=\"Controller\",(CHOOSE(RANDBETWEEN(1,16),\"Cold\",\"Dark\",\"Elec\",\"Emp\",\"FF\",\"Kin\",\"Nature\",\"Pain\",\"Poison\",\"Rad\",\"Sonic\",\"Storm\",\"Therm\",\"Time\",\"Traps\",\"Trick Arrow\")),\"Not Applicable\")","v":"Not Applicable"},null,null," "]
[null," ",null,{"$f":"IF(B4=\"Def\",(CHOOSE(RANDBETWEEN(1,16),\"Cold\",\"Dark\",\"Elec\",\"Emp\",\"FF\",\"Kin\",\"Nature\",\"Pain\",\"Poison\",\"Rad\",\"Sonic\",\"Storm\",\"Therm\",\"Time\",\"Traps\",\"Trick Arrow\")),\"Not Applicable\")","v":"Not Applicable"},null,{"$f":"IF(B4=\"Def\",(CHOOSE(RANDBETWEEN(1,13),\"Archery\",\"AR\",\"Beam\",\"Dark\",\"Dual\",\"Elec\",\"Energy\",\"Fire\",\"Ice\",\"Psy\",\"Rad\",\"Sonic\",\"Water\",\"DP\")),\"Not Applicable\")","v":"Not Applicable"},null,null," "]
[null," ",null,{"$f":"IF(B4=\"Scrapper\",(CHOOSE(RANDBETWEEN(1,20),\"BA\",\"BS\",\"Claws\",\"DM\",\"DB\",\"Elec\",\"Energy\",\"Fiery\",\"Ice\",\"Katana\",\"kinetic\",\"MA\",\"Psi\",\"Rad\",\"Sav\",\"Spines\",\"Staff\",\"Stj\",\"TW\",\"WM\")),\"Not Applicable\")","v":"Not Applicable"},null,{"$f":"IF(B4=\"Scrapper\",(CHOOSE(RANDBETWEEN(1,13),\"Bio\",\"Dark\",\"Elec\",\"Energy\",\"Fiery\",\"Ice\",\"Invuln\",\"Ninjitsu\",\"Rad\",\"Regen\",\"SD\",\"SR\",\"WP\")),\"Not Applicable\")","v":"Not Applicable"}]
[null," ",null,{"$f":"IF(B4=\"Tanker\",(CHOOSE(RANDBETWEEN(1,11),\"Bio\",\"Dark\",\"Elec\",\"Stone\",\"Fiery\",\"Ice\",\"Invuln\",\"Rad\",\"SD\",\"SR\",\"WP\")),\"Not Applicable\")","v":"Not Applicable"}," ",{"$f":"IF(B4=\"Tanker\",(CHOOSE(RANDBETWEEN(1,21),\"BA\",\"BS\",\"Claws\",\"DM\",\"DB\",\"Elec\",\"Energy\",\"Fiery\",\"Ice\",\"Katana\",\"kinetic\",\"MA\",\"Psi\",\"Rad\",\"Sav\",\"Spines\",\"Staff\",\"Stj\",\"TW\",\"WM\",\"SS\")),\"Not Applicable\")","v":"Not Applicable"}]
[null,null,null,{"$f":"IF(B4=\"PB\",\"PB\",\"Not Applicable\")","v":"Not Applicable"},null,{"$f":"IF(B4=\"PB\",\"PB\",\"Not Applicable\")","v":"Not Applicable"},null," "]
[null," ",null,{"$f":"IF(B4=\"WS\",\"WS\",\"Not Applicable\")","v":"Not Applicable"},null,{"$f":"IF(B4=\"WS\",\"WS\",\"Not Applicable\")","v":"Not Applicable"}]
[null,null,null,{"$f":"IF(B4=\"Sent\",(CHOOSE(RANDBETWEEN(1,13),\"Archery\",\"AR\",\"Beam\",\"Dark\",\"Dual\",\"Elec\",\"Energy\",\"Fire\",\"Ice\",\"Psy\",\"Rad\",\"Sonic\",\"Water\",\"DP\")),\"Not Applicable\")","v":"Energy"}," ",{"$f":"IF(B4=\"Sent\",(CHOOSE(RANDBETWEEN(1,12),\"Bio\",\"Dark\",\"Elec\",\"Energy\",\"Fiery\",\"Ice\",\"Invuln\",\"Ninjitsu\",\"Rad\",\"Regen\",\"SR\",\"WP\")),\"Not Applicable\")","v":"Ninjitsu"}]
[null,null,null,{"$f":"IF(B4=\"Brute\",(CHOOSE(RANDBETWEEN(1,21),\"BA\",\"BS\",\"Claws\",\"DM\",\"DB\",\"Elec\",\"Energy\",\"Fiery\",\"Ice\",\"Katana\",\"kinetic\",\"MA\",\"Psi\",\"Rad\",\"Sav\",\"Spines\",\"Staff\",\"Stj\",\"TW\",\"WM\",\"SS\")),\"Not Applicable\")","v":"Not Applicable"}," ",{"$f":"IF(B4=\"Brute\",(CHOOSE(RANDBETWEEN(1,13),\"Stone\",\"Bio\",\"Dark\",\"Elec\",\"Energy\",\"Fiery\",\"Ice\",\"Invuln\",\"Rad\",\"SD\",\"SR\",\"WP\",\"Regen\")),\"Not Applicable\")","v":"Not Applicable"}]
[null,null,null,{"$f":"IF(B4=\"Stalker\",(CHOOSE(RANDBETWEEN(1,17),\"BS\",\"Claws\",\"DM\",\"DB\",\"Elec\",\"Energy\",\"Fiery\",\"Ice\",\"Katana\",\"kinetic\",\"MA\",\"Psi\",\"Rad\",\"Sav\",\"Spines\",\"Staff\",\"Stj\")),\"Not Applicable\")","v":"Not Applicable"},null,{"$f":"IF(B4=\"Stalker\",(CHOOSE(RANDBETWEEN(1,13),\"Bio\",\"Dark\",\"Elec\",\"Energy\",\"Fiery\",\"Ice\",\"Invuln\",\"Ninjitsu\",\"Rad\",\"Regen\",\"SD\",\"SR\",\"WP\")),\"Not Applicable\")","v":"Not Applicable"}]
[null," ",null,{"$f":"IF(B4=\"MM\",(CHOOSE(RANDBETWEEN(1,6),\"Beasts\",\"Thugs\",\"Demons\",\"Necromancy\",\"Mercs\",\"Robots\")),\"Not Applicable\")","v":"Not Applicable"}," ",{"$f":"IF(B4=\"MM\",(CHOOSE(RANDBETWEEN(1,16),\"Cold\",\"Dark\",\"Elec\",\"Emp\",\"FF\",\"Kin\",\"Nature\",\"Pain\",\"Poison\",\"Rad\",\"Sonic\",\"Storm\",\"Therm\",\"Time\",\"Traps\",\"Trick Arrow\")),\"Not Applicable\")","v":"Not Applicable"},null,null," "]
[null,null,null,{"$f":"IF(B4=\"Dom\",(CHOOSE(RANDBETWEEN(1,8),\"Fire\",\"Earth\",\"Dark\",\"Elec\",\"Grav\",\"Ice\",\"mind\",\"plant\")),\"Not Applicable\")","v":"Not Applicable"}," ",{"$f":"IF(B4=\"Dom\",(CHOOSE(RANDBETWEEN(1,11),\"Fire\",\"Earth\",\"Dark\",\"Elec\",\"Martial\",\"Ice\",\"Rad\",\"Psi\",\"Savage\",\"Thorny\",\"Energy\")),\"Not Applicable\")","v":"Not Applicable"}," "]
[null,null,null,{"$f":"IF(B4=\"Corr\",(CHOOSE(RANDBETWEEN(1,13),\"Archery\",\"AR\",\"Beam\",\"Dark\",\"Dual\",\"Elec\",\"Energy\",\"Fire\",\"Ice\",\"Psy\",\"Rad\",\"Sonic\",\"Water\",\"DP\")),\"Not Applicable\")","v":"Not Applicable"},null,{"$f":"IF(B4=\"Corr\",(CHOOSE(RANDBETWEEN(1,16),\"Cold\",\"Dark\",\"Elec\",\"Emp\",\"FF\",\"Kin\",\"Nature\",\"Pain\",\"Poison\",\"Rad\",\"Sonic\",\"Storm\",\"Therm\",\"Time\",\"Traps\",\"Trick Arrow\")),\"Not Applicable\")","v":"Not Applicable"},null,null," "]
[null,null,null,{"$f":"IF(B4=\"Widow\",(CHOOSE(RANDBETWEEN(1,2),\"Fort\",\"Night\")),\"Not Applicable\")","v":"Not Applicable"},null,{"$f":"D17","v":"Not Applicable"},null,null,null," "]
[null,null,null,{"$f":"IF(B4=\"Soldier\",(CHOOSE(RANDBETWEEN(1,2),\"Bane\",\"Crab\")),\"Not Applicable\")","v":"Not Applicable"},null,{"$f":"D18","v":"Not Applicable"},null," "," "]
[null,"  ",null,null," "," "," ",null,null," "]
[null,null,null,null,null," ",null,null," "]
[null," ",null," "," "," "," "]
[null," "," "," "," "," "," ",null," "]
[null," ",null," ",null," ",null," "]
[null,null," ",null," "," "," "," "]
[null,null,null,null,null," "]